[Event "4th Baskent University Open 2019"]
[Site "Ankara"]
[Date "2019.06.18"]
[Round "2"]
[White "Guliev, Logman"]
[Black "Ozdemir, Serhan Berat"]
[Result "1-0"]
[ECO "B42"]
[WhiteElo "2320"]
[BlackElo "1950"]
[Annotator "NA"]
[PlyCount "169"]
[EventDate "2019.06.18"]
[EventType "swiss"]
[EventCountry "TUR"]
[SourceTitle "playchess.com"]
[Source "ChessBase"]
[SourceQuality "1"]
[TimeControl "5400+30"]

1. e4 {[%emt 0:00:30]} c5 {[%emt 0:00:30]} 2. Nf3 {[%emt 0:00:30]} e6 {[%emt 0:00:30]} 3. d4 {[%emt 0:00:00]} cxd4 {[%emt 0:00:00]} 4. Nxd4 {[%emt 0:00:00]} a6 {[%emt 0:00:00]} 5. Bd3 {[%emt 0:00:00]} Nf6 {[%emt 0:00:00]} 6. O-O {[%emt 0:00:00]} Qc7 {[%emt 0:00:00]} 7. Qe2 {[%emt 0:00:30]} d6 {[%emt 0:00:30]} 8. c4 {[%emt 0:00:30]} g6 {[%emt 0:00:30]} 9. f4 {[%emt 0:02:30]} Bg7 {[%emt 0:02:30]} 10. Kh1 {[%emt 0:00:30]} O-O {[%emt 0:00:30]} 11. Nc3 {[%emt 0:00:30]} Nbd7 {[%emt 0:05:30]} 12. Be3 {[%emt 0:02:30]} b6 {[%emt 0:07:30]} 13. Rac1 {[%emt 0:01:30]} Bb7 {[%emt 0:00:30]} 14. b4 {[%emt 0:00:00]} Rac8 {[%emt 0:01:30]} 15. Nb3 {[%emt 0:03:00]} Qb8 {[%emt 0:02:30]} 16. a4 {[%emt 0:01:30]} Qa8 {[%emt 0:05:30]} 17. Bd4 {[%emt 0:02:30]} e5 {[%emt 0:09:30]} 18. fxe5 {[%emt 0:00:30]} dxe5 {[%emt 0:00:00]} 19. Bg1 {[%emt 0:00:30]} Nh5 {[%emt 0:05:00]} 20. Be3 {[%emt 0:06:30]} Nf4 {[%emt 0:21:30]} 21. Bxf4 {[%emt 0:04:30]} exf4 {[%emt 0:00:30]} 22. Nd5 {[%emt 0:00:30]} Rfe8 {[%emt 0:00:30]} 23. Qf2 {[%emt 0:01:30]} Ne5 {[%emt 0:02:30]} 24. Be2 {[%emt 0:00:30]} Bxd5 {[%emt 0:06:30]} 25. exd5 {[%emt 0:02:30]} b5 {[%emt 0:01:30]} 26. axb5 {[%emt 0:00:30]} axb5 {[%emt 0:00:30]} 27. Ra1 {[%emt 0:01:30]} Qb8 {[%emt 0:01:30]} 28. c5 {[%emt 0:00:30]} Nc4 {[%emt 0:00:30]} 29. d6 {[%emt 0:07:30]} Bxa1 {[%emt 0:02:30]} 30. Rxa1 {[%emt 0:00:00]} Re3 {[%emt 0:04:30]} 31. Nd4 {[%emt 0:01:00]} Nxd6 {[%emt 0:00:30]} 32. cxd6 {[%emt 0:02:30]} Qxd6 {[%emt 0:00:30]} 33. Rd1 {[%emt 0:08:30]} Qxb4 {[%emt 0:00:50]} 34. Qxf4 {[%emt 0:00:30]} Rce8 {[%emt 0:01:11]} 35. Rf1 {[%emt 0:00:30]} Qf8 {[%emt 0:10:47]} 36. Bxb5 {[%emt 0:00:30]} R8e4 {[%emt 0:00:54]} 37. Qf2 {[%emt 0:01:30]} Qe7 {[%emt 0:00:41]} 38. Nc6 {[%emt 0:02:30]} Qe6 {[%emt 0:04:26]} 39. Nd8 {[%emt 0:04:30]} Qf5 {[%emt 0:00:38]} 40. Qxf5 {[%emt 0:01:30]} gxf5 {[%emt 0:00:04]} 41. Rxf5 {[%emt 0:00:00]} Re5 {[%emt 0:00:21]} 42. Rxe5 {[%emt 0:00:00]} Rxe5 {[%emt 0:00:30]} 43. Bf1 {[%emt 0:00:30]} Rc5 {[%emt 0:00:37]} 44. Nb7 {[%emt 0:00:30]} Rd5 {[%emt 0:00:06]} 45. Kg1 {[%emt 0:00:00]} Kg7 {[%emt 0:00:04]} 46. Kf2 {[%emt 0:00:00]} Rf5+ {[%emt 0:00:09]} 47. Ke1 {[%emt 0:01:30]} Rd5 {[%emt 0:01:35]} 48. Be2 {[%emt 0:00:00]} Rg5 {[%emt 0:02:54]} 49. Kf2 {[%emt 0:01:00]} Rf5+ {[%emt 0:00:30]} 50. Bf3 {[%emt 0:00:00]} Rb5 {[%emt 0:00:29]} 51. Nd6 {[%emt 0:00:00]} Rb4 {[%emt 0:00:00]} 52. Ke3 {[%emt 0:01:30]} Rb6 {[%emt 0:00:10]} 53. Nf5+ {[%emt 0:01:30]} Kf6 {[%emt 0:00:05]} 54. Kf4 {[%emt 0:00:30]} Rb4+ {[%emt 0:01:20]} 55. Be4 {[%emt 0:00:00]} Rb2 {[%emt 0:00:14]} 56. h4 {[%emt 0:00:00]} Rf2+ {[%emt 0:01:20]} 57. Bf3 {[%emt 0:00:30]} Rb2 {[%emt 0:00:00]} 58. g4 {[%emt 0:00:30]} Rb4+ {[%emt 0:01:02]} 59. Be4 {[%emt 0:00:30]} Rb2 {[%emt 0:00:28]} 60. h5 {[%emt 0:00:30]} Rf2+ {[%emt 0:01:01]} 61. Bf3 {[%emt 0:00:00]} Rf1 {[%emt 0:00:00]} 62. g5+ {[%emt 0:01:00]} Ke6 {[%emt 0:00:00]} 63. Ng3 {[%emt 0:00:30]} Ra1 {[%emt 0:00:18]} 64. h6 {[%emt 0:03:30]} Ra4+ {[%emt 0:00:36]} 65. Ne4 {[%emt 0:00:30]} Ke7 {[%emt 0:01:53]} 66. Bg4 {[%emt 0:00:30]} Kf8 {[%emt 0:01:15]} 67. Bf5 {[%emt 0:00:30]} Kg8 {[%emt 0:00:05]} 68. Kf3 {[%emt 0:01:30]} Ra3+ {[%emt 0:01:09]} 69. Kg4 {[%emt 0:00:30]} Kh8 {[%emt 0:00:01]} 70. Nd6 {[%emt 0:01:30]} Ra4+ {[%emt 0:00:22]} 71. Kf3 {[%emt 0:00:00]} Ra7 {[%emt 0:00:53]} 72. Kf4 {[%emt 0:02:00]} Re7 {[%emt 0:00:27]} 73. Be4 {[%emt 0:00:30]} Kg8 {[%emt 0:00:33]} 74. Bd5 {[%emt 0:00:30]} Rd7 {[%emt 0:00:30]} 75. Ke5 {[%emt 0:00:30]} Kf8 {[%emt 0:00:03]} 76. Ne4 {[%emt 0:00:30]} Re7+ {[%emt 0:00:30]} 77. Kd6 {[%emt 0:00:00]} Re8 {[%emt 0:00:54]} 78. Nf6 {[%emt 0:00:00]} Rd8+ {[%emt 0:00:25]} 79. Ke5 {[%emt 0:00:30]} Ke7 {[%emt 0:00:37]} 80. Nxh7 {[%emt 0:00:30]} Rg8 {[%emt 0:00:31]} 81. Kf5 {[%emt 0:00:30]} Rd8 {[%emt 0:00:22]} 82. Nf6 {[%emt 0:00:30]} Rh8 {[%emt 0:00:07]} 83. Ng4 {[%emt 0:02:30]} Rd8 {[%emt 0:00:10]} 84. Ne5 {[%emt 0:00:30]} Rxd5 {[%emt 0:00:30]} 85. h7 {[%emt 0:00:00]} 1-0

[Event "4th Baskent University Open 2019"]
[Site "Ankara"]
[Date "2019.06.18"]
[Round "2"]
[White "Gulden, Egemen"]
[Black "Nagy, Gabor"]
[Result "0-1"]
[ECO "C48"]
[WhiteElo "2120"]
[BlackElo "2471"]
[Annotator "ChessBase"]
[PlyCount "52"]
[EventDate "2019.06.18"]
[EventType "swiss"]
[EventCountry "TUR"]
[SourceTitle "playchess.com"]
[Source "ChessBase"]
[SourceQuality "1"]
[TimeControl "5400+30"]

1. e4 {[%emt 0:00:30]} e5 {[%emt 0:01:30]} 2. Nf3 {[%emt 0:01:30]} Nc6 {[%emt 0:00:30]} 3. Nc3 {[%emt 0:00:30]} Nf6 {[%emt 0:00:30]} 4. Bb5 {[%emt 0:01:30]} Nd4 {[%emt 0:01:30]} 5. Bc4 {[%emt 0:06:30]} Bc5 {[%emt 0:01:30]} 6. d3 {[%emt 0:01:30]} O-O {[%emt 0:06:30]} 7. Bg5 {[%emt 0:03:30]} h6 {[%emt 0:00:30]} 8. Bh4 {[%emt 0:02:30]} c6 {[%emt 0:04:30]} 9. O-O {[%emt 0:23:30]} g5 {[%emt 0:02:30]} 10. Nxe5 {[%emt 0:17:30]} gxh4 {[%emt 0:02:30]} 11. Nxf7 {[%emt 0:02:30]} Rxf7 {[%emt 0:00:30]} 12. Bxf7+ {[%emt 0:00:30]} Kxf7 {[%emt 0:00:30]} 13. e5 {[%emt 0:00:00]} d5 {[%emt 0:00:30]} 14. Na4 {[%emt 0:10:00]} Bg4 {[%emt 0:03:30]} 15. f3 {[%emt 0:09:44]} Nxf3+ {[%emt 0:00:30]} 16. Kh1 {[%emt 0:00:00]} Nxe5 {[%emt 0:00:00]} 17. Qd2 {[%emt 0:00:00]} Bd6 {[%emt 0:00:00]} 18. d4 {[%emt 0:06:41]} Ned7 {[%emt 0:01:30]} 19. h3 {[%emt 0:05:24]} Bh5 {[%emt 0:01:30]} 20. Qxh6 {[%emt 0:01:35]} Qh8 {[%emt 0:00:30]} 21. Qg5 {[%emt 0:00:06]} Bg6 {[%emt 0:00:30]} 22. Nc5 {[%emt 0:01:30]} Bxc5 {[%emt 0:00:00]} 23. dxc5 {[%emt 0:00:15]} Rg8 {[%emt 0:00:00]} 24. Rf2 {[%emt 0:01:49]} Be4 {[%emt 0:00:30]} 25. Qf4 {[%emt 0:00:08]} Qg7 {[%emt 0:00:30]} 26. Rg1 {[%emt 0:02:30]} Qg3 {[%emt 0:00:30]} 0-1

[Event "4th Baskent University Open 2019"]
[Site "Ankara"]
[Date "2019.06.18"]
[Round "2"]
[White "Korkmaz, Necmettin"]
[Black "Iskandarov, Misratdin"]
[Result "0-1"]
[ECO "B24"]
[WhiteElo "2098"]
[BlackElo "2502"]
[Annotator "ChessBase"]
[PlyCount "68"]
[EventDate "2019.06.18"]
[EventType "swiss"]
[EventCountry "TUR"]
[SourceTitle "playchess.com"]
[Source "ChessBase"]
[SourceQuality "1"]
[TimeControl "5400+30"]

1. e4 {[%emt 0:00:30]} c5 {[%emt 0:00:30]} 2. Nc3 {[%emt 0:00:30]} e6 {[%emt 0:00:30]} 3. f4 {[%emt 0:00:30]} Nc6 {[%emt 0:00:30]} 4. Nf3 {[%emt 0:00:30]} a6 {[%emt 0:00:00]} 5. g3 {[%emt 0:02:30]} Nge7 {[%emt 0:04:00]} 6. Bg2 {[%emt 0:02:30]} g6 {[%emt 0:00:30]} 7. O-O {[%emt 0:09:30]} Bg7 {[%emt 0:00:30]} 8. d3 {[%emt 0:00:30]} O-O {[%emt 0:00:30]} 9. Be3 {[%emt 0:00:00]} Nd4 {[%emt 0:00:30]} 10. Ne2 {[%emt 0:03:00]} Nxf3+ {[%emt 0:28:30]} 11. Bxf3 {[%emt 0:02:30]} d6 {[%emt 0:01:30]} 12. c3 {[%emt 0:01:30]} b6 {[%emt 0:00:30]} 13. Qe1 {[%emt 0:13:30]} Bb7 {[%emt 0:00:30]} 14. Rd1 {[%emt 0:04:30]} Qc7 {[%emt 0:01:30]} 15. Qf2 {[%emt 0:03:30]} f5 {[%emt 0:04:30]} 16. Rfe1 {[%emt 0:02:30]} Kh8 {[%emt 0:02:30]} 17. Qg2 {[%emt 0:01:30]} b5 {[%emt 0:00:30]} 18. d4 {[%emt 0:02:30]} fxe4 {[%emt 0:01:30]} 19. Bxe4 {[%emt 0:00:00]} Nd5 {[%emt 0:01:30]} 20. Bf2 {[%emt 0:01:00]} c4 {[%emt 0:00:30]} 21. h4 {[%emt 0:13:30]} Rab8 {[%emt 0:00:30]} 22. h5 {[%emt 0:02:30]} gxh5 {[%emt 0:00:00]} 23. f5 {[%emt 0:00:30]} Rxf5 {[%emt 0:00:00]} 24. Bxf5 {[%emt 0:00:30]} exf5 {[%emt 0:00:30]} 25. Qh3 {[%emt 0:00:30]} Qf7 {[%emt 0:01:30]} 26. Nf4 {[%emt 0:00:30]} Nxf4 {[%emt 0:00:30]} 27. gxf4 {[%emt 0:00:30]} Bh6 {[%emt 0:03:30]} 28. d5 {[%emt 0:00:30]} Rg8+ {[%emt 0:00:30]} 29. Kf1 {[%emt 0:02:30]} Bxd5 {[%emt 0:07:30]} 30. Rxd5 {[%emt 0:04:30]} Qxd5 {[%emt 0:00:30]} 31. Bd4+ {[%emt 0:00:30]} Bg7 {[%emt 0:00:30]} 32. Bxg7+ {[%emt 0:01:30]} Kxg7 {[%emt 0:02:30]} 33. Qxh5 {[%emt 0:03:30]} Qd3+ {[%emt 0:01:30]} 34. Re2 {[%emt 0:12:11]} Kh8 {[%emt 0:00:00]} 0-1

[Event "4th Baskent University Open 2019"]
[Site "Ankara"]
[Date "2019.06.18"]
[Round "2"]
[White "Caputcuoglu, Zeki Berke"]
[Black "Nikcevic, Nebojsa"]
[Result "0-1"]
[ECO "D37"]
[WhiteElo "2097"]
[BlackElo "2420"]
[Annotator "NA"]
[PlyCount "112"]
[EventDate "2019.06.18"]
[EventType "swiss"]
[EventCountry "TUR"]
[SourceTitle "playchess.com"]
[Source "ChessBase"]
[SourceQuality "1"]
[TimeControl "5400+30"]

1. Nf3 {[%emt 0:00:30]} Nf6 {[%emt 0:03:30]} 2. d4 {[%emt 0:00:30]} e6 {[%emt 0:00:30]} 3. c4 {[%emt 0:00:00]} a6 {[%emt 0:01:30]} 4. Nc3 {[%emt 0:01:00]} d5 {[%emt 0:00:30]} 5. cxd5 {[%emt 0:00:30]} exd5 {[%emt 0:01:30]} 6. Bg5 {[%emt 0:00:30]} Be6 {[%emt 0:00:00]} 7. e3 {[%emt 0:00:30]} Nbd7 {[%emt 0:01:00]} 8. Qc2 {[%emt 0:01:30]} Bd6 {[%emt 0:01:30]} 9. Bd3 {[%emt 0:00:30]} h6 {[%emt 0:02:30]} 10. Bh4 {[%emt 0:00:30]} O-O {[%emt 0:04:30]} 11. O-O {[%emt 0:00:30]} Rc8 {[%emt 0:02:30]} 12. Rfd1 {[%emt 0:07:30]} c5 {[%emt 0:07:30]} 13. dxc5 {[%emt 0:05:30]} Nxc5 {[%emt 0:06:30]} 14. Rac1 {[%emt 0:21:30]} Qe7 {[%emt 0:12:30]} 15. Qb1 {[%emt 0:04:30]} Rfd8 {[%emt 0:01:30]} 16. Bg3 {[%emt 0:04:30]} Bxg3 {[%emt 0:03:30]} 17. hxg3 {[%emt 0:00:30]} Ng4 {[%emt 0:09:30]} 18. Bf5 {[%emt 0:01:30]} Nf6 {[%emt 0:03:30]} 19. Nd4 {[%emt 0:01:30]} Ncd7 {[%emt 0:03:30]} 20. Rd2 {[%emt 0:07:30]} Ne5 {[%emt 0:01:30]} 21. Rcd1 {[%emt 0:03:30]} Nc4 {[%emt 0:01:30]} 22. Re2 {[%emt 0:01:30]} Bxf5 {[%emt 0:03:30]} 23. Nxf5 {[%emt 0:01:30]} Qe5 {[%emt 0:00:00]} 24. Rd4 {[%emt 0:02:30]} b5 {[%emt 0:08:00]} 25. Qd3 {[%emt 0:01:30]} g6 {[%emt 0:03:40]} 26. Nxh6+ {[%emt 0:01:30]} Kg7 {[%emt 0:00:04]} 27. Ng4 {[%emt 0:01:30]} Nxg4 {[%emt 0:00:30]} 28. Rxg4 {[%emt 0:00:00]} Nxb2 {[%emt 0:00:00]} 29. Qd4 {[%emt 0:02:00]} Qxd4 {[%emt 0:01:58]} 30. Rxd4 {[%emt 0:00:30]} Rxc3 {[%emt 0:01:29]} 31. Rxb2 {[%emt 0:00:30]} Rc1+ {[%emt 0:02:29]} 32. Kh2 {[%emt 0:00:00]} Rc4 {[%emt 0:00:33]} 33. Rbd2 {[%emt 0:02:00]} Rxd4 {[%emt 0:00:13]} 34. Rxd4 {[%emt 0:00:30]} Kf6 {[%emt 0:00:03]} 35. a4 {[%emt 0:07:58]} Ke5 {[%emt 0:02:23]} 36. axb5 {[%emt 0:00:42]} axb5 {[%emt 0:00:04]} 37. Rb4 {[%emt 0:01:25]} Rh8+ {[%emt 0:01:47]} 38. Kg1 {[%emt 0:00:30]} Rb8 {[%emt 0:00:01]} 39. Kf1 {[%emt 0:00:19]} Kd6 {[%emt 0:00:03]} 40. Ke2 {[%emt 0:00:26]} Kc5 {[%emt 0:00:02]} 41. Rb2 {[%emt 0:00:00]} b4 {[%emt 0:08:44]} 42. Kd3 {[%emt 0:00:00]} Rb7 {[%emt 0:00:00]} 43. Rd2 {[%emt 0:06:36]} Ra7 {[%emt 0:00:04]} 44. Rc2+ {[%emt 0:01:15]} Kb5 {[%emt 0:00:07]} 45. Rc8 {[%emt 0:00:13]} Ra2 {[%emt 0:01:16]} 46. f3 {[%emt 0:02:25]} Rxg2 {[%emt 0:00:58]} 47. g4 {[%emt 0:00:16]} Rg3 {[%emt 0:00:21]} 48. Ke2 {[%emt 0:00:07]} Rh3 {[%emt 0:01:18]} 49. Rf8 {[%emt 0:01:06]} Kc4 {[%emt 0:00:31]} 50. Rxf7 {[%emt 0:01:29]} Rh2+ {[%emt 0:00:30]} 51. Kd1 {[%emt 0:00:00]} Kd3 {[%emt 0:00:21]} 52. Kc1 {[%emt 0:00:08]} Kxe3 {[%emt 0:00:45]} 53. Rb7 {[%emt 0:00:16]} d4 {[%emt 0:00:42]} 54. Rxb4 {[%emt 0:00:16]} Rh1+ {[%emt 0:00:36]} 55. Kc2 {[%emt 0:00:18]} d3+ {[%emt 0:00:16]} 56. Kc3 {[%emt 0:00:09]} Rc1+ {[%emt 0:00:09]} 0-1

[Event "4th Baskent University Open 2019"]
[Site "Ankara"]
[Date "2019.06.18"]
[Round "2"]
[White "Javadov, Ramil"]
[Black "Mammadov, Zaur"]
[Result "0-1"]
[ECO "D23"]
[WhiteElo "2063"]
[BlackElo "2428"]
[Annotator "NA"]
[PlyCount "56"]
[EventDate "2019.06.18"]
[EventType "swiss"]
[EventCountry "TUR"]
[SourceTitle "playchess.com"]
[Source "ChessBase"]
[SourceQuality "1"]
[TimeControl "5400+30"]

1. d4 {[%emt 0:00:30]} d5 {[%emt 0:00:30]} 2. c4 {[%emt 0:00:30]} dxc4 {[%emt 0:00:30]} 3. Nf3 {[%emt 0:00:00]} Nf6 {[%emt 0:00:00]} 4. g3 {[%emt 0:07:00]} c5 {[%emt 0:02:00]} 5. Nc3 {[%emt 0:03:30]} e6 {[%emt 0:06:30]} 6. e4 {[%emt 0:09:30]} cxd4 {[%emt 0:08:30]} 7. Nxd4 {[%emt 0:00:30]} a6 {[%emt 0:02:30]} 8. Bxc4 {[%emt 0:04:30]} b5 {[%emt 0:00:30]} 9. Bb3 {[%emt 0:01:30]} Bb7 {[%emt 0:01:30]} 10. f3 {[%emt 0:01:30]} Bc5 {[%emt 0:00:30]} 11. Be3 {[%emt 0:05:30]} Qb6 {[%emt 0:05:30]} 12. a4 {[%emt 0:07:30]} Nc6 {[%emt 0:02:30]} 13. Nxc6 {[%emt 0:07:30]} Bxe3 {[%emt 0:00:30]} 14. axb5 {[%emt 0:02:30]} Bxc6 {[%emt 0:06:30]} 15. bxc6 {[%emt 0:05:30]} O-O {[%emt 0:00:30]} 16. Qe2 {[%emt 0:13:30]} Bd4 {[%emt 0:07:30]} 17. Ba4 {[%emt 0:06:30]} Rfb8 {[%emt 0:00:30]} 18. Nd1 {[%emt 0:07:36]} Qa5+ {[%emt 0:03:30]} 19. Kf1 {[%emt 0:01:24]} Rb4 {[%emt 0:01:30]} 20. Qc2 {[%emt 0:00:09]} Rab8 {[%emt 0:01:30]} 21. Ra2 {[%emt 0:00:02]} Bb6 {[%emt 0:01:30]} 22. h4 {[%emt 0:10:06]} Rd4 {[%emt 0:01:30]} 23. Nc3 {[%emt 0:01:03]} Rbd8 {[%emt 0:00:30]} 24. Rh2 {[%emt 0:02:27]} Nh5 {[%emt 0:00:30]} 25. Ne2 {[%emt 0:01:24]} Rd1+ {[%emt 0:00:30]} 26. Kg2 {[%emt 0:00:18]} R8d2 {[%emt 0:00:30]} 27. Qc4 {[%emt 0:00:53]} Rxe2+ {[%emt 0:00:30]} 28. Qxe2 {[%emt 0:00:21]} Rg1+ 0-1

[Event "4th Baskent University Open 2019"]
[Site "Ankara"]
[Date "2019.06.18"]
[Round "2"]
[White "Gulsoy, Mustafa Alpago"]
[Black "Can, Isik"]
[Result "1/2-1/2"]
[ECO "B22"]
[WhiteElo "2055"]
[BlackElo "2379"]
[Annotator "NA"]
[PlyCount "91"]
[EventDate "2019.06.18"]
[EventType "swiss"]
[EventCountry "TUR"]
[SourceTitle "playchess.com"]
[Source "ChessBase"]
[SourceQuality "1"]
[TimeControl "5400+30"]

1. e4 {[%emt 0:00:30]} c5 {[%emt 0:00:30]} 2. c3 {[%emt 0:00:30]} Nf6 {[%emt 0:00:00]} 3. e5 {[%emt 0:00:30]} Nd5 {[%emt 0:00:00]} 4. d4 {[%emt 0:00:00]} cxd4 {[%emt 0:00:30]} 5. Nf3 {[%emt 0:00:00]} e6 {[%emt 0:00:00]} 6. cxd4 {[%emt 0:00:30]} d6 {[%emt 0:00:00]} 7. Bc4 {[%emt 0:01:30]} Be7 {[%emt 0:00:00]} 8. O-O {[%emt 0:00:30]} O-O {[%emt 0:00:00]} 9. Bd2 {[%emt 0:02:30]} dxe5 {[%emt 0:02:30]} 10. dxe5 {[%emt 0:01:30]} b6 {[%emt 0:00:30]} 11. Qe2 {[%emt 0:01:30]} Bb7 {[%emt 0:00:30]} 12. Nc3 {[%emt 0:00:30]} Nxc3 {[%emt 0:00:30]} 13. Bxc3 {[%emt 0:00:30]} Nd7 {[%emt 0:01:30]} 14. Rac1 {[%emt 0:10:30]} Rc8 {[%emt 0:06:30]} 15. Bd3 {[%emt 0:04:30]} Nc5 {[%emt 0:00:30]} 16. Bc4 {[%emt 0:09:30]} Rc7 {[%emt 0:09:30]} 17. b4 {[%emt 0:05:30]} Ne4 {[%emt 0:03:30]} 18. Bb2 {[%emt 0:05:30]} Bxb4 {[%emt 0:02:30]} 19. Rfd1 {[%emt 0:02:30]} Qc8 {[%emt 0:23:30]} 20. Bd3 {[%emt 0:04:30]} Nc3 {[%emt 0:27:36]} 21. Bxc3 {[%emt 0:02:30]} Bxf3 {[%emt 0:00:26]} 22. Qxf3 {[%emt 0:04:30]} Bxc3 {[%emt 0:01:50]} 23. Rb1 {[%emt 0:04:30]} Rc5 {[%emt 0:02:13]} 24. Qe4 {[%emt 0:02:30]} g6 {[%emt 0:00:01]} 25. f4 {[%emt 0:00:00]} Rd8 {[%emt 0:01:02]} 26. g3 {[%emt 0:01:00]} Rcd5 {[%emt 0:02:46]} 27. Be2 {[%emt 0:01:30]} Bd2 {[%emt 0:01:54]} 28. Kg2 {[%emt 0:07:30]} Rd4 {[%emt 0:04:23]} 29. Qf3 {[%emt 0:00:00]} Qc2 {[%emt 0:00:30]} 30. a3 {[%emt 0:06:00]} Re4 {[%emt 0:03:45]} 31. Kh3 {[%emt 0:04:47]} Re3 {[%emt 0:01:29]} 32. Qxe3 {[%emt 0:00:56]} Bxe3 {[%emt 0:00:31]} 33. Rxd8+ {[%emt 0:00:30]} Kg7 {[%emt 0:00:00]} 34. Bd3 {[%emt 0:00:11]} Qc6 {[%emt 0:00:25]} 35. Rd6 {[%emt 0:01:34]} Qa4 {[%emt 0:01:22]} 36. Bb5 {[%emt 0:02:21]} Qxa3 {[%emt 0:02:46]} 37. Be8 {[%emt 0:00:11]} Kf8 {[%emt 0:01:57]} 38. Rbd1 {[%emt 0:00:20]} Bc5 {[%emt 0:00:56]} 39. Rd8 {[%emt 0:01:27]} Kg7 {[%emt 0:00:36]} 40. R1d7 {[%emt 0:00:56]} Be7 {[%emt 0:00:00]} 41. Rb8 {[%emt 0:00:42]} Kf8 {[%emt 0:00:54]} 42. Rc7 {[%emt 0:00:27]} Kg7 {[%emt 0:00:28]} 43. Bc6 {[%emt 0:01:19]} Qd3 {[%emt 0:00:33]} 44. Rxe7 {[%emt 0:00:49]} Qf5+ {[%emt 0:00:03]} 45. Kg2 {[%emt 0:02:29]} Qc2+ {[%emt 0:00:05]} 46. Kh3 {[%emt 0:00:00]} 1/2-1/2

[Event "4th Baskent University Open 2019"]
[Site "Ankara"]
[Date "2019.06.18"]
[Round "2"]
[White "Makaraci, Tunahan"]
[Black "Simantsev, Mikhail"]
[Result "0-1"]
[ECO "B22"]
[WhiteElo "1963"]
[BlackElo "2371"]
[Annotator "NA"]
[PlyCount "108"]
[EventDate "2019.06.18"]
[EventType "swiss"]
[EventCountry "TUR"]
[SourceTitle "playchess.com"]
[Source "ChessBase"]
[SourceQuality "1"]
[TimeControl "5400+30"]

1. e4 {[%emt 0:00:30]} c5 {[%emt 0:07:30]} 2. Nf3 {[%emt 0:00:00]} e6 {[%emt 0:00:00]} 3. c3 {[%emt 0:00:00]} Nf6 {[%emt 0:00:00]} 4. e5 {[%emt 0:00:30]} Nd5 {[%emt 0:00:30]} 5. d4 {[%emt 0:00:00]} cxd4 {[%emt 0:00:30]} 6. cxd4 {[%emt 0:00:00]} d6 {[%emt 0:03:30]} 7. Bc4 {[%emt 0:00:00]} Nc6 {[%emt 0:02:30]} 8. O-O {[%emt 0:01:00]} Be7 {[%emt 0:03:30]} 9. Qe2 {[%emt 0:00:00]} O-O {[%emt 0:01:30]} 10. Rd1 {[%emt 0:01:00]} Na5 {[%emt 0:14:30]} 11. b3 {[%emt 0:19:30]} b6 {[%emt 0:11:30]} 12. exd6 {[%emt 0:06:30]} Qxd6 {[%emt 0:04:30]} 13. Ba3 {[%emt 0:01:30]} Nb4 {[%emt 0:00:00]} 14. Nc3 {[%emt 0:02:30]} Bb7 {[%emt 0:04:00]} 15. d5 {[%emt 0:02:30]} Nxc4 {[%emt 0:04:30]} 16. bxc4 {[%emt 0:00:30]} exd5 {[%emt 0:03:30]} 17. Nxd5 {[%emt 0:07:30]} Bxd5 {[%emt 0:00:30]} 18. cxd5 {[%emt 0:00:30]} Rfe8 {[%emt 0:06:30]} 19. Rab1 {[%emt 0:00:30]} a5 {[%emt 0:00:30]} 20. Qe4 {[%emt 0:04:30]} Bf8 {[%emt 0:02:30]} 21. Qc4 {[%emt 0:09:30]} Rac8 {[%emt 0:01:30]} 22. Qb5 {[%emt 0:02:30]} Red8 {[%emt 0:06:30]} 23. Qe2 {[%emt 0:07:30]} Qf4 {[%emt 0:04:57]} 24. Bxb4 {[%emt 0:04:30]} Bxb4 {[%emt 0:01:53]} 25. a3 {[%emt 0:05:30]} Bc5 {[%emt 0:02:51]} 26. Qd3 {[%emt 0:01:30]} Rd6 {[%emt 0:01:26]} 27. g3 {[%emt 0:00:30]} Qf6 {[%emt 0:03:46]} 28. Qb3 {[%emt 0:04:30]} Rcd8 {[%emt 0:00:11]} 29. Rd3 {[%emt 0:00:28]} h6 {[%emt 0:02:14]} 30. Kg2 {[%emt 0:01:49]} Re8 {[%emt 0:01:14]} 31. Rbd1 {[%emt 0:01:32]} Re4 {[%emt 0:01:06]} 32. Qc2 {[%emt 0:01:38]} Re8 {[%emt 0:01:09]} 33. Qc4 {[%emt 0:00:28]} Re2 {[%emt 0:00:26]} 34. R1d2 {[%emt 0:02:59]} Rxd2 {[%emt 0:00:30]} 35. Rxd2 {[%emt 0:00:00]} Bxa3 {[%emt 0:00:00]} 36. Re2 {[%emt 0:00:07]} Bc5 {[%emt 0:01:16]} 37. Ne5 {[%emt 0:00:57]} h5 {[%emt 0:02:14]} 38. Nc6 {[%emt 0:02:08]} g6 {[%emt 0:01:46]} 39. Nxa5 {[%emt 0:05:29]} Qf5 {[%emt 0:00:01]} 40. Rd2 {[%emt 0:00:36]} Rf6 {[%emt 0:00:01]} 41. f4 {[%emt 0:03:14]} h4 {[%emt 0:01:52]} 42. Nb3 {[%emt 0:01:41]} h3+ {[%emt 0:00:28]} 43. Kf3 {[%emt 0:00:08]} Bd6 {[%emt 0:00:20]} 44. Qc2 {[%emt 0:01:46]} Qh5+ {[%emt 0:00:03]} 45. Ke3 {[%emt 0:01:26]} g5 {[%emt 0:00:10]} 46. Qc8+ {[%emt 0:00:00]} Kg7 {[%emt 0:00:20]} 47. f5 {[%emt 0:01:42]} Qg4 {[%emt 0:00:07]} 48. Rf2 {[%emt 0:00:18]} Bxg3 {[%emt 0:02:00]} 49. hxg3 {[%emt 0:00:44]} Qxg3+ {[%emt 0:00:30]} 50. Rf3 {[%emt 0:00:30]} Qg1+ {[%emt 0:00:30]} 51. Ke2 {[%emt 0:00:30]} h2 {[%emt 0:00:00]} 52. Nd4 {[%emt 0:00:16]} h1=Q {[%emt 0:00:46]} 53. Ne6+ {[%emt 0:00:03]} Rxe6+ {[%emt 0:00:00]} 54. fxe6 {[%emt 0:00:24]} Qd1+ {[%emt 0:00:00]} 0-1